bitfinex/quotes_ETHUSD_20240721
["timestamp","ask_amount","ask_price","bid_price","bid_amount"]
[1721601073375,2.82773,3536.5,3535.5,1.11346092]
[1721601073544,2.82774,3536.4,3535.5,1.11346092]
[1721601073750,2.82759,3536.6,3535.5,1.11346092]
[1721601074052,2.82767,3536.5,3535.5,1.11346092]
[1721601075656,3.7138845,3536.7,3535.5,3.94190092]
[1721601075966,2.82757,3536.6,3535.6,3.92480609]
[1721601076208,2.82757,3536.6,3535.6,0.92480609]
[1721601076503,0.8863945,3536.7,3535.4,3.0]
[1721601076703,2.82797,3536.2,3535.3,2.306]
[1721601076997,2.82797,3536.2,3535.3,5.306]
[1721601077291,2.82799,3536.1,3535.3,2.306]
[1721601077491,2.82805,3536.0,3535.3,2.306]
[1721601077651,2.82791,3536.2,3535.3,2.306]
[1721601078163,0.37141945,3536.3,3535.3,2.306]
[1721601078369,3.19925945,3536.3,3535.3,2.306]
[1721601078572,2.82784,3536.3,3535.4,0.81347592]
[1721601078986,0.8863945,3536.5,3535.4,0.81347592]
[1721601079154,0.8863945,3536.6,3535.4,3.64196592]
[1721601079354,2.82765,3536.5,3535.4,0.81347592]
[1721601079575,0.8863945,3536.4,3535.3,2.306]
[1721601079787,2.82807,3536.0,3535.3,2.306]
[1721601080499,0.8863945,3536.3,3535.3,2.306]
[1721601080500,2.82799,3536.1,3535.3,2.306]
[1721601082564,0.8863945,3536.4,3535.3,2.306]
[1721601082565,2.8279,3536.2,3535.3,2.306]
[1721601082976,2.82803,3536.1,3535.3,2.306]
[1721601083562,2.82803,3536.1,3535.3,2.29860454]
[1721601083807,2.82805,3536.0,3535.3,2.29860454]
[1721601084698,2.82837,3535.6,3535.2,9.24e-06]
[1721601085297,2.82827,3535.8,3535.2,9.24e-06]
[1721601085684,2.82832,3535.7,3535.2,9.24e-06]
[1721601085875,3.7144545,3536.0,3535.2,9.24e-06]
[1721601086229,2.82827,3535.8,3535.2,9.24e-06]
[1721601086403,2.82838,3535.6,3535.2,9.24e-06]
[1721601087264,2.82821,3535.8,3535.2,9.24e-06]
[1721601088018,2.82832,3535.7,3535.2,9.24e-06]
[1721601088785,2.82838,3535.6,3535.2,9.24e-06]
[1721601091179,2.82846,3535.5,3535.2,9.24e-06]
[1721601091613,0.8863945,3535.9,3535.8,2.82821]
[1721601091826,0.8863945,3537.1,3535.6,2.4491]
[1721601092034,0.8863945,3537.2,3535.7,2.82829]
[1721601092313,2.82725,3537.0,3535.8,2.82818]
[1721601093118,2.82712,3537.2,3535.9,2.82813]
[1721601093323,2.82712,3537.2,3536.0,2.82805]
[1721601093518,2.82733,3536.9,3535.6,5.27741]
[1721601093689,3.19852145,3537.1,3535.6,2.4491]
[1721601093690,4.08491595,3537.1,3535.6,2.4491]
[1721601093897,4.08497595,3537.1,3535.9,2.82809]
[1721601094113,1.25774595,3537.1,3536.0,2.82803]
[1721601094419,0.37135145,3537.1,3536.0,2.82803]
[1721601094626,0.4084856,3537.0,3536.0,2.82803]
[1721601094777,0.4084856,3537.0,3535.8,2.82818]
[1721601095108,2.82747,3536.8,3535.6,5.4491]
[1721601095306,2.82747,3536.8,3535.6,5.27747]
[1721601096115,2.82774,3536.4,3535.6,2.4491]
[1721601096417,2.82782,3536.3,3535.6,2.4491]
[1721601096618,2.82771,3536.5,3535.6,2.4491]
[1721601096920,0.65416745,3536.4,3535.6,2.4491]
[1721601097085,0.8863945,3536.5,3535.2,2.44910924]
[1721601097282,0.8863945,3536.3,3535.2,2.44910924]
[1721601097515,2.82807,3536.0,3535.2,2.44910924]
[1721601097679,2.82828,3535.8,3535.2,2.44910924]
[1721601098720,2.82807,3536.0,3535.2,2.44910924]
[1721601098721,2.82829,3535.7,3535.2,2.44910924]
[1721601099219,2.82818,3535.9,3535.2,2.44910924]
[1721601099521,0.565625,3535.8,3535.2,2.44910924]
[1721601099990,3.393855,3535.8,3535.2,2.44910924]
[1721601100200,2.82829,3535.7,3535.2,2.44910924]
[1721601100584,0.565625,3535.8,3535.2,2.44910924]
[1721601100585,2.82837,3535.6,3535.2,2.44910924]
[1721601100786,2.82847,3535.5,3535.2,9.24e-06]
[1721601100985,0.282847,3535.4,3535.2,9.24e-06]
[1721601102288,2.82823,3535.8,3535.2,9.24e-06]
[1721601102726,2.82814,3535.9,3535.2,9.24e-06]
[1721601103183,2.82823,3535.8,3535.2,9.24e-06]
[1721601103385,0.565628,3535.7,3535.2,9.24e-06]
[1721601103621,2.82805,3536.0,3535.3,2.3772]
[1721601103829,2.82806,3536.0,3535.3,2.3772]
[1721601103996,2.82831,3535.7,3535.2,9.24e-06]
[1721601105093,2.82813,3535.9,3535.2,9.24e-06]
[1721601106334,7.48,3536.1,3535.2,9.24e-06]
[1721601106531,2.82829,3535.7,3535.2,9.24e-06]
[1721601107201,2.82839,3535.6,3535.2,9.24e-06]
[1721601107536,2.82854,3535.4,3535.2,9.24e-06]
[1721601107720,2.82861,3535.3,3535.2,9.24e-06]
[1721601108639,2.82848,3535.5,3535.2,9.24e-06]
[1721601108932,2.82854,3535.4,3535.2,9.24e-06]
[1721601110038,2.82838,3535.6,3535.2,9.24e-06]
[1721601111053,1.72303395,3536.0,3535.2,9.24e-06]
[1721601111230,2.82823,3535.8,3535.2,9.24e-06]
[1721601111807,2.8283,3535.7,3535.2,9.24e-06]
[1721601112135,2.82838,3535.6,3535.2,9.24e-06]
[1721601113216,2.82855,3535.4,3535.2,9.24e-06]
[1721601113412,2.82838,3535.6,3535.2,9.24e-06]
[1721601113627,0.65429845,3535.5,3535.2,9.24e-06]
[1721601113813,3.7145245,3535.9,3535.2,9.24e-06]
[1721601114014,2.82813,3535.9,3535.2,9.24e-06]
[1721601114755,0.8863945,3536.0,3535.2,9.24e-06]
[1721601114968,3.7146345,3535.8,3535.2,9.24e-06]
[1721601115112,2.82847,3535.5,3535.2,9.24e-06]
[1721601116223,3.48278045,3535.5,3535.2,9.24e-06]
[1721601118271,2.82854,3535.4,3535.2,9.24e-06]
[1721601119517,0.65431045,3535.5,3535.2,9.24e-06]
[1721601119518,5.65722,3535.3,3535.2,9.24e-06]
[1721601120158,2.82861,3535.3,3535.2,9.24e-06]
[1721601120462,3.38372743,3535.3,3535.2,9.24e-06]
[1721601121463,6.21233743,3535.3,3535.2,9.24e-06]
[1721601121656,3.38372743,3535.3,3535.2,9.24e-06]
[1721601121962,0.55511743,3535.3,3535.2,9.24e-06]
[1721601122524,3.38372743,3535.3,3535.2,9.24e-06]
[1721601122725,2.82838,3535.6,3535.2,9.24e-06]
[1721601122726,0.8863945,3535.6,3535.2,9.24e-06]
[1721601122925,2.82845,3535.5,3535.2,9.24e-06]
[1721601124720,3.7146945,3535.7,3535.2,9.24e-06]
[1721601124721,2.82854,3535.4,3535.2,9.24e-06]
[1721601125134,2.82861,3535.3,3535.2,9.24e-06]
[1721601126968,5.65722,3535.3,3535.2,9.24e-06]
[1721601127182,6.42976738,3535.3,3535.2,9.24e-06]
[1721601127884,11.58572627,3535.3,3535.2,9.24e-06]
[1721601128044,10.1038394,3535.3,3535.2,9.24e-06]
[1721601128688,11.58554936,3535.3,3535.2,9.24e-06]
[1721601128846,10.1038394,3535.3,3535.2,9.24e-06]
[1721601130362,10.54738808,3535.3,3535.2,9.24e-06]
[1721601131182,12.02826737,3535.3,3535.2,9.24e-06]
[1721601131359,10.54738808,3535.3,3535.2,9.24e-06]
[1721601131559,12.02819548,3535.3,3535.2,9.24e-06]
[1721601132479,12.24638808,3535.3,3535.2,9.24e-06]
[1721601132691,13.72694898,3535.3,3535.2,9.24e-06]
[1721601132993,18.07499808,3535.3,3535.2,9.24e-06]
[1721601138320,19.55378373,3535.3,3535.2,9.24e-06]
[1721601138516,18.07499808,3535.3,3535.2,9.24e-06]
[1721601141218,19.85072229,3535.3,3535.2,9.24e-06]
[1721601141380,19.85052532,3535.3,3535.2,9.24e-06]
[1721601142386,18.21894793,3535.3,3535.2,9.24e-06]
[1721601142918,19.99500547,3535.3,3535.2,9.24e-06]
[1721601143131,19.85105562,3535.3,3535.2,9.24e-06]
[1721601143937,18.07499808,3535.3,3535.2,9.24e-06]
[1721601144143,19.85097591,3535.3,3535.2,9.24e-06]
[1721601144280,18.07499808,3535.3,3535.2,9.24e-06]
[1721601144896,15.24638808,3535.3,3535.2,9.24e-06]
[1721601146387,17.73638808,3535.3,3535.2,9.24e-06]
[1721601146588,15.24638808,3535.3,3535.2,9.24e-06]
[1721601147306,17.73638808,3535.3,3535.2,9.24e-06]
[1721601147687,15.24638808,3535.3,3535.2,9.24e-06]
[1721601152709,16.72643971,3535.3,3535.2,9.24e-06]
[1721601153132,15.24638808,3535.3,3535.2,9.24e-06]
[1721601155726,17.02268366,3535.3,3535.2,9.24e-06]
[1721601156644,17.02305414,3535.3,3535.2,9.24e-06]
[1721601156862,15.24638808,3535.3,3535.2,9.24e-06]
[1721601158224,19.85166414,3535.3,3535.2,9.24e-06]
[1721601158450,22.34166414,3535.3,3535.2,9.24e-06]
[1721601158660,19.51305414,3535.3,3535.2,9.24e-06]
[1721601158838,17.02305414,3535.3,3535.2,9.24e-06]
[1721601159323,17.02370378,3535.3,3535.2,9.24e-06]
[1721601159519,15.24638808,3535.3,3535.2,9.24e-06]
[1721601160365,10.16877808,3535.3,3535.2,9.24e-06]
[1721601160667,10.87746082,3535.3,3535.2,9.24e-06]
[1721601160877,9.3962307,3535.3,3535.2,9.24e-06]
[1721601161534,10.87746082,3535.3,3535.2,9.24e-06]
[1721601162559,9.3962307,3535.3,3535.2,9.24e-06]
[1721601162759,9.9462307,3535.3,3535.2,9.24e-06]
[1721601162965,13.93936377,3535.3,3535.2,9.24e-06]
[1721601168970,11.11075377,3535.3,3535.2,9.24e-06]
[1721601169169,13.93936377,3535.3,3535.2,9.24e-06]
[1721601170331,17.41813645,3535.3,3535.2,9.24e-06]
[1721601172194,15.63836377,3535.3,3535.2,9.24e-06]
[1721601172340,17.56383239,3535.3,3535.2,9.24e-06]
[1721601172709,14.73522239,3535.3,3535.2,9.24e-06]
[1721601173281,12.95367701,3535.3,3535.2,9.24e-06]
[1721601173883,14.73559585,3535.3,3535.2,9.24e-06]
[1721601175247,2.52092954,3535.3,3535.2,2.46400924]
[1721601175455,4.01630599,3535.3,3535.2,2.46400924]
[1721601175650,6.84491599,3535.3,3535.2,2.46400924]
[1721601175862,5.65722,3535.3,3535.2,2.46400924]
[1721601176062,7.14183999,3535.3,3535.2,2.46400924]
[1721601176786,5.65722,3535.3,3535.2,2.46400924]
[1721601176941,7.14183999,3535.3,3535.2,2.46400924]
[1721601177367,7.14183999,3535.3,3535.2,9.24e-06]
[1721601177368,10.68463399,3535.3,3535.2,9.24e-06]
[1721601177539,9.750014,3535.3,3535.2,9.24e-06]
[1721601180867,10.04550637,3535.3,3535.2,9.24e-06]
[1721601181180,11.74450637,3535.3,3535.2,9.24e-06]
[1721601181512,17.71703922,3535.3,3535.2,9.24e-06]
[1721601184146,19.79527197,3535.3,3535.2,9.24e-06]
[1721601185245,22.62388197,3535.3,3535.2,9.24e-06]
[1721601185654,20.89564922,3535.3,3535.2,9.24e-06]
[1721601186380,20.54564922,3535.3,3535.2,9.24e-06]
[1721601188472,21.04325392,3535.3,3535.2,9.24e-06]
[1721601188667,23.52235392,3535.3,3535.2,9.24e-06]
[1721601188887,26.45410373,3535.3,3535.2,9.24e-06]
[1721601189072,23.52235392,3535.3,3535.2,9.24e-06]
[1721601189281,23.37843107,3535.3,3535.2,9.24e-06]
[1721601189493,23.52240651,3535.3,3535.2,9.24e-06]
[1721601189673,28.95827204,3535.3,3535.2,9.24e-06]
[1721601189890,26.01240651,3535.3,3535.2,9.24e-06]
[1721601190070,26.29590651,3535.3,3535.2,9.24e-06]
[1721601193117,25.46240651,3535.3,3535.2,9.24e-06]
[1721601193291,20.77660651,3535.3,3535.2,9.24e-06]
[1721601193614,11.33848181,3535.3,3535.2,9.24e-06]
[1721601194135,3.12410237,3535.3,3535.2,2.49870924]
[1721601194279,4.01496758,3535.3,3535.2,2.49870924]
[1721601194612,3.7182538,3535.3,3535.2,2.49870924]
[1721601194828,4.01496758,3535.3,3535.2,2.49870924]
[1721601194976,5.65722,3535.3,3535.2,2.49870924]
[1721601195182,2.82861,3535.3,3535.2,2.49870924]
[1721601195414,4.01484223,3535.3,3535.2,2.49870924]
[1721601196203,6.84345223,3535.3,3535.2,2.49870924]
[1721601196561,5.65722,3535.3,3535.2,2.49870924]
[1721601196811,8.24011544,3535.3,3535.2,2.49870924]
[1721601197018,7.90622,3535.3,3535.2,2.49870924]
[1721601197220,7.68996155,3535.3,3535.2,2.49870924]
[1721601197402,4.31135155,3535.3,3535.2,2.49870924]
[1721601197602,4.01472457,3535.3,3535.2,2.49870924]
[1721601198119,2.82861,3535.3,3535.2,2.49870924]
[1721601198804,0.88949832,3535.3,3535.2,2.49870924]
[1721601199010,3.71810832,3535.3,3535.2,2.49870924]
[1721601199223,6.84333457,3535.3,3535.2,2.49870924]
[1721601199531,6.84321646,3535.3,3535.2,2.49870924]
[1721601199735,5.65722,3535.3,3535.2,2.49870924]
[1721601199939,2.82861,3535.3,3535.2,2.49870924]
[1721601200134,6.84321765,3535.3,3535.2,2.49870924]
[1721601200437,5.65722,3535.3,3535.2,2.49870924]
[1721601201296,6.84315098,3535.3,3535.2,2.49870924]
[1721601202419,7.1395775,3535.3,3535.2,2.49870924]
[1721601202635,7.13964682,3535.3,3535.2,2.49870924]
[1721601202800,5.65722,3535.3,3535.2,2.49870924]
[1721601203323,7.13964682,3535.3,3535.2,2.49870924]
[1721601204302,5.65722,3535.3,3535.2,2.49870924]
[1721601205151,7.13964682,3535.3,3535.2,2.49870924]
[1721601205425,7.0018269,3535.3,3535.2,2.49870924]
[1721601205637,7.0018269,3535.3,3535.2,9.24e-06]
[1721601205785,11.5294369,3535.3,3535.2,9.24e-06]
[1721601205989,11.02977034,3535.3,3535.2,9.24e-06]
[1721601206224,9.54516642,3535.3,3535.2,9.24e-06]
[1721601207936,6.50155952,3535.3,3535.2,9.24e-06]
[1721601208451,7.68743113,3535.3,3535.2,9.24e-06]
[1721601208750,7.98389963,3535.3,3535.2,9.24e-06]
[1721601209516,7.68745503,3535.3,3535.2,9.24e-06]
[1721601209713,6.50155952,3535.3,3535.2,9.24e-06]
[1721601210362,7.46984948,3535.3,3535.2,9.24e-06]
[1721601211168,9.16884948,3535.3,3535.2,9.24e-06]
[1721601211358,11.99745948,3535.3,3535.2,9.24e-06]
[1721601211977,14.99745948,3535.3,3535.2,9.24e-06]
[1721601212264,20.70980263,3535.3,3535.2,9.24e-06]
[1721601212851,20.35980263,3535.3,3535.2,9.24e-06]
[1721601213397,15.14139263,3535.3,3535.2,9.24e-06]
[1721601214026,20.0455855,3535.3,3535.2,9.24e-06]
[1721601214437,15.14139263,3535.3,3535.2,9.24e-06]
[1721601216235,17.97000263,3535.3,3535.2,9.24e-06]
[1721601216427,20.04560243,3535.3,3535.2,9.24e-06]
[1721601217228,17.97000263,3535.3,3535.2,9.24e-06]
[1721601217433,15.14139263,3535.3,3535.2,9.24e-06]
[1721601218152,11.76278263,3535.3,3535.2,9.24e-06]
[1721601218357,11.61884948,3535.3,3535.2,9.24e-06]
[1721601218550,5.95155952,3535.3,3535.2,9.24e-06]
[1721601218754,4.30863931,3535.3,3535.2,9.24e-06]
[1721601218950,3.12294952,3535.3,3535.2,9.24e-06]
[1721601219154,4.30863931,3535.3,3535.2,9.24e-06]
[1721601219681,5.95155952,3535.3,3535.2,9.24e-06]
[1721601219848,6.98339993,3535.3,3535.2,9.24e-06]
[1721601220160,11.51100993,3535.3,3535.2,9.24e-06]
[1721601220541,12.06100993,3535.3,3535.2,9.24e-06]
[1721601221666,13.83970698,3535.3,3535.2,9.24e-06]
[1721601223855,12.06100993,3535.3,3535.2,9.24e-06]
[1721601224184,13.84001783,3535.3,3535.2,9.24e-06]
[1721601224482,16.33201783,3535.3,3535.2,9.24e-06]
[1721601224677,13.98395358,3535.3,3535.2,9.24e-06]
[1721601224886,13.84001783,3535.3,3535.2,9.24e-06]
[1721601225395,16.33201783,3535.3,3535.2,9.24e-06]
[1721601225746,13.84001783,3535.3,3535.2,9.24e-06]
[1721601226180,13.9839535,3535.3,3535.2,9.24e-06]
[1721601226352,16.33201783,3535.3,3535.2,9.24e-06]
[1721601226556,16.47595323,3535.3,3535.2,9.24e-06]
[1721601226852,13.98395323,3535.3,3535.2,9.24e-06]
[1721601227187,13.84017508,3535.3,3535.2,9.24e-06]
[1721601227363,16.47611077,3535.3,3535.2,9.24e-06]
[1721601227557,16.47611413,3535.3,3535.2,9.24e-06]
[1721601227877,13.98411413,3535.3,3535.2,9.24e-06]
[1721601228067,16.81272413,3535.3,3535.2,9.24e-06]
[1721601228273,18.03355562,3535.3,3535.2,9.24e-06]
[1721601229383,15.20494562,3535.3,3535.2,9.24e-06]
[1721601231286,15.20495068,3535.3,3535.2,9.24e-06]
[1721601235981,15.64856526,3535.3,3535.2,9.24e-06]
[1721601239919,17.72610967,3535.3,3535.2,9.24e-06]
[1721601240215,6.09550027,3535.3,3535.2,2.41010924]
[1721601240401,7.73216948,3535.3,3535.2,2.41010924]
[1721601240608,5.95155952,3535.3,3535.2,2.41010924]
[1721601241196,5.95155952,3535.3,3535.2,9.24e-06]
[1721601241545,6.89467647,3535.3,3535.2,9.24e-06]
[1721601241694,8.59367647,3535.3,3535.2,9.24e-06]
[1721601242212,8.20055952,3535.3,3535.2,9.24e-06]
[1721601242786,6.50155952,3535.3,3535.2,9.24e-06]
[1721601242994,7.98549423,3535.3,3535.2,2.45980924]
[1721601244623,1.18706438,3535.3,3535.2,2.45980924]
[1721601245007,4.31247471,3535.4,3535.2,2.45980924]
[1721601245008,1.18706438,3535.4,3535.2,2.45980924]
[1721601245705,1.18706438,3535.3,3535.2,2.45980924]
[1721601245904,2.82861,3535.3,3535.2,2.45980924]
[1721601246132,4.31217435,3535.4,3535.2,2.45980924]
[1721601246484,1.18690084,3535.3,3535.2,2.45980924]
[1721601246731,4.01551084,3535.3,3535.2,2.45980924]
[1721601247101,2.82861,3535.3,3535.2,2.45980924]
[1721601247280,4.01543203,3535.3,3535.2,2.45980924]
[1721601248029,1.18682203,3535.3,3535.2,2.45980924]
[1721601248190,1.18682203,3535.4,3535.2,2.45980924]
[1721601248390,0.890083,3535.3,3535.2,2.45980924]
[1721601249910,3.718693,3535.3,3535.2,2.45980924]
[1721601250098,2.82861,3535.3,3535.2,2.45980924]
[1721601250445,2.82861,3535.3,3535.2,2.70579016]
[1721601250446,0.88978243,3535.3,3535.2,2.70579016]
[1721601250750,0.88978243,3535.8,3535.2,2.70579016]
[1721601250911,0.88978243,3536.0,3535.2,2.70579016]
[1721601251231,0.88978243,3536.0,3535.3,3.01326402]
[1721601251432,8.36978243,3536.1,3535.3,3.01326402]
[1721601252194,0.88978243,3536.2,3535.4,2.3095]
[1721601252506,0.88978243,3536.4,3535.5,2.3095]
[1721601252728,0.88978243,3536.8,3535.9,2.3095]
[1721601253050,0.88978243,3536.8,3536.0,2.82327]
[1721601253564,0.88978243,3536.9,3536.0,2.82327]
[1721601254043,0.88978243,3536.9,3536.0,2.3095]
[1721601254240,2.82744,3536.8,3536.0,2.3095]
[1721601254537,0.88978243,3536.9,3536.0,2.3095]
[1721601254749,10.30729,3537.0,3536.0,2.3095]
[1721601256153,2.82729,3537.0,3536.0,2.3095]
[1721601256300,2.82729,3537.0,3536.2,2.3095]
[1721601256845,2.82734,3536.9,3536.2,2.3095]
[1721601257214,2.82742,3536.8,3536.2,2.3095]
[1721601258017,2.82729,3537.0,3536.2,2.3095]
[1721601259029,2.82717,3537.1,3536.2,2.3095]
[1721601259366,2.82741,3536.8,3536.2,2.54045]
[1721601259847,0.88978243,3537.3,3536.2,2.3095]
[1721601260049,2.82781,3536.3,3536.2,2.3095]
[1721601262406,2.82769,3536.5,3536.2,2.3095]
[1721601262734,7.48,3536.9,3536.2,2.3095]
[1721601262735,2.82776,3536.4,3536.2,2.3095]
[1721601263040,2.82757,3536.6,3536.2,2.3095]
[1721601263998,3.57541,3536.8,3536.2,2.3095]
[1721601264232,2.82766,3536.5,3536.2,2.3095]
[1721601265610,2.82775,3536.4,3536.2,2.3095]
[1721601266150,2.82767,3536.5,3536.2,2.3095]
[1721601266903,2.8275,3536.7,3536.2,2.3095]
[1721601268659,2.82758,3536.6,3536.2,2.3095]
[1721601268805,2.82767,3536.5,3536.2,2.3095]
[1721601269703,2.82754,3536.7,3536.2,2.3095]
[1721601269901,10.30737,3536.9,3536.2,2.3095]
[1721601270152,10.30737,3536.9,3536.2,2.54045]
[1721601270914,2.82719,3537.1,3536.2,2.54045]
[1721601271118,0.55,3537.2,3536.3,2.52854913]
[1721601271341,10.30704,3537.3,3536.4,0.0565473]
[1721601271646,10.30704,3537.3,3536.5,2.472]
[1721601271809,10.30704,3537.3,3536.6,0.25285473]
[1721601272140,10.30704,3537.3,3536.5,2.472]
[1721601272350,7.48,3537.3,3536.5,2.472]
[1721601272507,2.82726,3537.0,3536.5,2.472]
[1721601272943,2.82712,3537.2,3536.5,2.472]
[1721601273145,2.82718,3537.1,3536.5,2.472]
[1721601273328,2.82718,3537.1,3536.6,0.25285469]
[1721601273646,2.82729,3537.0,3536.6,0.25285469]
[1721601274509,2.82712,3537.2,3536.6,0.25285469]
[1721601274843,7.48,3537.3,3536.7,2.4522]
[1721601276708,2.82687,3537.5,3536.7,2.4522]
[1721601276904,2.82687,3537.5,3536.8,0.27050547]
[1721601277141,2.82687,3537.5,3536.9,2.3225]
[1721601278109,2.82703,3537.3,3536.9,2.3225]
[1721601278411,7.48,3537.7,3536.9,2.3225]
[1721601278646,2.82707,3537.3,3536.9,2.3225]
[1721601279854,2.82717,3537.1,3536.9,2.3225]
[1721601280035,2.82725,3537.0,3536.3,2.3225]
[1721601280244,2.82709,3537.2,3536.3,2.3225]
[1721601280428,0.55,3537.6,3536.5,2.3225]
[1721601280631,2.82731,3537.0,3536.5,2.3225]
[1721601280953,0.55,3537.6,3536.5,2.3225]
[1721601280954,2.82713,3537.2,3536.5,2.3225]
[1721601281274,2.8272,3537.1,3536.5,2.3225]
[1721601282362,5.65444,3537.1,3536.5,2.3225]
[1721601282649,2.8272,3537.1,3536.5,2.5802845]
[1721601283019,0.84511475,3537.6,3536.5,2.5802845]
[1721601283020,2.82727,3537.0,3536.5,2.5802845]
[1721601283521,2.82709,3537.2,3536.5,2.5802845]
[1721601283748,2.82718,3537.1,3536.5,2.5802845]
[1721601284054,2.82728,3537.0,3536.5,2.5802845]
[1721601286677,2.82741,3536.8,3536.5,2.3225]
[1721601287462,2.82728,3537.0,3536.5,2.3225]
[1721601287625,2.82718,3537.1,3536.5,2.3225]
[1721601288359,2.82729,3537.0,3536.5,2.3225]
[1721601288917,2.82718,3537.1,3536.5,2.3225]
[1721601288918,2.82737,3536.9,3536.5,2.3225]
[1721601289121,2.82743,3536.8,3536.5,2.3225]
[1721601289533,2.8278,3536.4,3535.4,2.3134]
[1721601291325,2.82757,3536.6,3535.5,2.3117]
[1721601291523,2.82757,3536.6,3535.6,2.3117]
[1721601291767,2.82735,3536.9,3535.8,2.3117]
[1721601292023,2.82742,3536.8,3536.0,2.3117]
[1721601296335,3.71711243,3536.9,3536.0,2.3117]
[1721601296536,2.82763,3536.6,3536.0,2.3117]
[1721601297036,0.88978243,3536.7,3536.0,2.3117]
[1721601297301,3.71720243,3536.8,3536.0,2.3117]
[1721601297579,3.71720243,3536.8,3536.0,2.825698]
[1721601298489,0.88978243,3536.7,3536.0,2.825698]
[1721601299338,3.71730243,3536.7,3536.0,2.3117]
[1721601300384,3.71744243,3536.5,3535.7,2.4057]
[1721601300617,2.82828,3535.8,3535.3,2.4009]
[1721601300770,2.82835,3535.7,3535.3,2.4009]
[1721601300976,3.71800243,3535.8,3535.3,2.4009]
[1721601301210,1.48285402,3536.1,3535.2,9.24e-06]
[1721601301211,1.38026488,3535.7,3535.2,9.24e-06]
[1721601301429,0.88978243,3535.7,3535.2,9.24e-06]
[1721601302129,2.82851,3535.5,3535.2,9.24e-06]
[1721601302280,2.82833,3535.7,3535.2,9.24e-06]
[1721601302726,2.82838,3535.6,3535.2,9.24e-06]
[1721601305118,2.82821,3535.8,3535.2,9.24e-06]
[1721601305330,2.82831,3535.7,3535.2,9.24e-06]
[1721601305686,3.71789243,3536.0,3535.3,2.4106]
[1721601306330,2.82811,3536.0,3535.3,2.4106]
[1721601307624,2.82814,3535.9,3535.3,2.4106]
[1721601307827,0.65458124,3535.9,3535.3,2.4106]
[1721601308036,2.82836,3535.7,3535.3,2.4106]
[1721601308851,2.82836,3535.7,3535.2,9.24e-06]
[1721601308852,2.82848,3535.5,3535.2,9.24e-06]
[1721601309219,0.565677,3535.5,3535.2,9.24e-06]
[1721601309418,2.82861,3535.3,3535.2,9.24e-06]
[1721601312216,2.82849,3535.5,3535.2,9.24e-06]
[1721601312417,2.82838,3535.6,3535.2,9.24e-06]
[1721601312619,0.55,3535.5,3535.2,9.24e-06]
[1721601313519,6.20697,3535.5,3535.2,9.24e-06]
[1721601313726,3.449247,3535.4,3535.2,9.24e-06]
[1721601313930,0.620697,3535.4,3535.2,9.24e-06]
[1721601314124,0.55,3535.5,3535.2,9.24e-06]
[1721601314339,3.37845,3535.5,3535.2,9.24e-06]
[1721601316341,0.55,3535.5,3535.2,9.24e-06]
[1721601316715,3.37845,3535.5,3535.2,9.24e-06]
[1721601318410,0.55,3535.5,3535.2,9.24e-06]
[1721601319212,0.55,3535.7,3535.2,9.24e-06]
[1721601319413,3.042,3535.9,3535.2,9.24e-06]
[1721601319714,2.82857,3535.4,3535.2,9.24e-06]
[1721601320044,2.82861,3535.3,3535.2,9.24e-06]
[1721601320760,6.222926,3535.3,3535.2,9.24e-06]
[1721601321083,10.73483,3535.3,3535.2,9.24e-06]
[1721601321553,11.92165203,3535.3,3535.2,9.24e-06]
[1721601322508,18.98904,3535.3,3535.2,9.24e-06]
[1721601322757,20.46691411,3535.3,3535.2,9.24e-06]
[1721601322971,23.22299041,3535.3,3535.2,9.24e-06]
[1721601323163,23.22239988,3535.3,3535.2,9.24e-06]
[1721601324185,18.9165063,3535.3,3535.2,9.24e-06]
[1721601324308,20.09765928,3535.3,3535.2,9.24e-06]
[1721601324960,21.7451163,3535.3,3535.2,9.24e-06]
[1721601325115,2.82992,3533.7,3533.4,2.4437]
[1721601325315,2.82998,3533.6,3533.4,2.4437]
[1721601326063,2.83006,3533.5,3532.4,4.9044]
[1721601326264,2.83006,3533.5,3532.5,0.773541]
[1721601326769,2.83006,3533.5,3532.5,3.265541]
[1721601327122,2.82954,3534.2,3532.5,0.773541]
[1721601327355,2.83016,3533.4,3532.4,2.4124]
[1721601327663,2.82999,3533.6,3532.4,2.4124]
[1721601328452,2.83005,3533.5,3532.4,2.4124]
[1721601329128,2.83014,3533.4,3532.4,2.4124]
[1721601329527,2.8299,3533.7,3532.4,2.4124]
[1721601329528,2.83,3533.6,3532.5,2.4124]
[1721601329729,2.83,3533.6,3532.6,0.824333]
[1721601330751,2.83,3533.6,3532.7,2.492]
[1721601330945,2.83,3533.6,3532.8,2.2866]
[1721601331824,2.83006,3533.5,3532.8,2.2866]
[1721601332231,2.83006,3533.5,3532.8,2.5976933]
[1721601335636,2.83006,3533.5,3532.9,2.492]
[1721601336268,2.83006,3533.5,3532.8,2.5976933]
[1721601337664,2.83015,3533.4,3532.8,2.5976933]
[1721601338583,2.83,3533.6,3532.8,2.5976933]
[1721601338887,2.83004,3533.6,3532.9,0.34220263]
[1721601339237,2.83014,3533.4,3532.9,0.34220263]
[1721601340647,2.83003,3533.6,3532.9,0.34220263]
[1721601340997,2.83006,3533.5,3532.9,0.34220263]
[1721601341535,2.83014,3533.4,3532.9,0.34220263]
[1721601342037,2.83021,3533.3,3532.8,2.2866]
[1721601343397,2.83009,3533.5,3532.8,2.2866]
[1721601343955,2.8299,3533.7,3532.8,2.2866]
[1721601344169,2.8299,3533.7,3532.9,2.3347]
[1721601344353,2.8299,3533.7,3532.9,2.81737]
[1721601344888,2.82987,3533.8,3532.9,2.81737]
[1721601345184,2.82974,3533.9,3532.9,2.81737]
[1721601345185,3.3799,3533.7,3532.9,2.81737]
[1721601345338,7.48,3534.0,3533.1,2.3347]
[1721601345543,7.48,3534.0,3533.2,0.281737]
[1721601345745,2.82957,3534.1,3532.8,2.3347]
[1721601345994,2.82957,3534.1,3532.9,2.492]
[1721601346195,2.82957,3534.1,3533.0,2.3347]
[1721601346521,2.82975,3533.9,3533.0,2.3347]
[1721601346742,2.82983,3533.8,3533.0,2.3347]
[1721601347011,2.83006,3533.5,3533.0,2.3347]
[1721601348192,2.82989,3533.7,3533.0,2.3347]
[1721601348563,2.82974,3533.9,3533.0,2.3347]
[1721601348798,0.55,3534.0,3532.9,2.3189]
[1721601348799,2.82966,3534.0,3532.9,2.3189]
[1721601350412,2.82979,3533.9,3532.9,2.3189]
[1721601350713,2.83003,3533.6,3532.9,2.3189]
[1721601350913,0.55,3533.8,3532.9,2.3189]
[1721601351064,2.83005,3533.5,3532.9,2.3189]
[1721601352093,2.83023,3533.3,3532.9,2.3189]
[1721601352663,2.83005,3533.5,3532.9,2.3189]
[1721601353196,2.83013,3533.4,3532.9,2.3189]
[1721601357436,2.83022,3533.3,3532.9,2.3189]